[Event "Early-Titled-Tuesday-Blitz-February-27-2024"]
[Site "Chess.com"]
[Date "2024.02.27"]
[Round "5"]
[White "SuperBlitz2013"]
[Black "ValentinDragnev"]
[Result "1/2-1/2"]
[WhiteElo "2260"]
[BlackElo "2744"]
[TimeControl "180+1"]
[EndTime "8:55:30 PST"]
[Termination "Game drawn - insufficient material"]

1. e4 {[%clk 0:03:00.9]} 1... c5 {[%clk 0:02:59.5]} 2. Nf3 {[%clk 0:03:00.5]}
2... e6 {[%clk 0:02:59.8]} 3. d4 {[%clk 0:02:59.9]} 3... cxd4 {[%clk 0:03:00.7]}
4. Nxd4 {[%clk 0:03:00.2]} 4... a6 {[%clk 0:03:01.1]} 5. c4 {[%clk 0:02:59.6]}
5... Nf6 {[%clk 0:03:01.1]} 6. Nc3 {[%clk 0:02:59.4]} 6... Qc7 {[%clk
0:02:59.3]} 7. a3 {[%clk 0:02:59.1]} 7... b6 {[%clk 0:02:59.4]} 8. Be3 {[%clk
0:02:57.8]} 8... Bb7 {[%clk 0:02:59]} 9. f3 {[%clk 0:02:58.4]} 9... d6 {[%clk
0:02:58.5]} 10. Rc1 {[%clk 0:02:58.9]} 10... Nbd7 {[%clk 0:02:59.2]} 11. Be2
{[%clk 0:02:59.2]} 11... Be7 {[%clk 0:02:59.7]} 12. O-O {[%clk 0:02:59.9]} 12...
O-O {[%clk 0:03:00.5]} 13. Qd2 {[%clk 0:03:00.5]} 13... Rac8 {[%clk 0:02:59.6]}
14. Rfd1 {[%clk 0:03:01.1]} 14... Rfe8 {[%clk 0:03:00.2]} 15. Bf1 {[%clk
0:03:00.5]} 15... Qb8 {[%clk 0:02:59.9]} 16. b4 {[%clk 0:02:57.6]} 16... Bd8
{[%clk 0:02:59.4]} 17. Kh1 {[%clk 0:02:55.1]} 17... Bc7 {[%clk 0:02:59.8]} 18.
Bg1 {[%clk 0:02:55.5]} 18... d5 {[%clk 0:02:44.8]} 19. cxd5 {[%clk 0:02:41.5]}
19... exd5 {[%clk 0:02:44.7]} 20. Nxd5 {[%clk 0:02:34]} 20... Nxd5 {[%clk
0:01:53.2]} 21. exd5 {[%clk 0:02:34.9]} 21... Bf4 {[%clk 0:01:53.8]} 22. Rxc8
{[%clk 0:02:30.8]} 22... Rxc8 {[%clk 0:01:54.2]} 23. Qf2 {[%clk 0:02:16.2]}
23... Nf6 {[%clk 0:01:44.5]} 24. Nc6 {[%clk 0:02:12.6]} 24... Bxc6 {[%clk
0:01:33.4]} 25. dxc6 {[%clk 0:02:12.6]} 25... b5 {[%clk 0:01:27.7]} 26. Qb6
{[%clk 0:01:37.7]} 26... Qa8 {[%clk 0:00:51]} 27. Qb7 {[%clk 0:01:16.3]} 27...
Ne8 {[%clk 0:00:28.2]} 28. Qxa8 {[%clk 0:01:08.5]} 28... Rxa8 {[%clk 0:00:28.2]}
29. g3 {[%clk 0:01:00.3]} 29... Bd6 {[%clk 0:00:27.5]} 30. Bh3 {[%clk
0:00:57.6]} 30... Kf8 {[%clk 0:00:20.2]} 31. Bc5 {[%clk 0:00:21.4]} 31... Bxc5
{[%clk 0:00:17.4]} 32. bxc5 {[%clk 0:00:22.3]} 32... Ra7 {[%clk 0:00:16.2]} 33.
Rd7 {[%clk 0:00:20.7]} 33... Rc7 {[%clk 0:00:16.4]} 34. Rxc7 {[%clk 0:00:16.4]}
34... Nxc7 {[%clk 0:00:17.3]} 35. Kg2 {[%clk 0:00:13.7]} 35... a5 {[%clk
0:00:17.8]} 36. Kf2 {[%clk 0:00:13.6]} 36... Ke7 {[%clk 0:00:10.1]} 37. Ke3
{[%clk 0:00:13.4]} 37... Kd8 {[%clk 0:00:09.4]} 38. Kd4 {[%clk 0:00:12.6]} 38...
Ne6+ {[%clk 0:00:05.6]} 39. Kd5 {[%clk 0:00:11.7]} 39... Kc7 {[%clk 0:00:06]}
40. Bf1 {[%clk 0:00:10.2]} 40... b4 {[%clk 0:00:06.4]} 41. axb4 {[%clk
0:00:09.8]} 41... axb4 {[%clk 0:00:07.3]} 42. Bc4 {[%clk 0:00:07.2]} 42... Nd8
{[%clk 0:00:05.2]} 43. Bb5 {[%clk 0:00:04.7]} 43... b3 {[%clk 0:00:04.8]} 44.
Ba4 {[%clk 0:00:03.4]} 44... b2 {[%clk 0:00:05.7]} 45. Bc2 {[%clk 0:00:04]}
45... Nxc6 {[%clk 0:00:06.2]} 46. Kc4 {[%clk 0:00:03.1]} 46... Ne5+ {[%clk
0:00:06.6]} 47. Kc3 {[%clk 0:00:02.6]} 47... Nxf3 {[%clk 0:00:07.5]} 48. Kxb2
{[%clk 0:00:02.8]} 48... Nxh2 {[%clk 0:00:07.8]} 49. Bxh7 {[%clk 0:00:03.2]}
49... Nf1 {[%clk 0:00:07.5]} 50. Bg8 {[%clk 0:00:03.1]} 50... f6 {[%clk
0:00:07.6]} 51. g4 {[%clk 0:00:02.5]} 51... Ne3 {[%clk 0:00:08.2]} 52. Kc3
{[%clk 0:00:02.5]} 52... Nxg4 {[%clk 0:00:07.6]} 53. Kd4 {[%clk 0:00:02.9]}
53... Ne5 {[%clk 0:00:06.7]} 54. Kd5 {[%clk 0:00:03.2]} 54... Kd7 {[%clk
0:00:04.2]} 55. Be6+ {[%clk 0:00:03.6]} 55... Ke7 {[%clk 0:00:03.8]} 56. Bf5
{[%clk 0:00:04.1]} 56... g6 {[%clk 0:00:03.7]} 57. Bh3 {[%clk 0:00:03.2]} 57...
g5 {[%clk 0:00:04]} 58. c6 {[%clk 0:00:02.7]} 58... g4 {[%clk 0:00:03.5]} 59.
Bg2 {[%clk 0:00:03.3]} 59... Kd8 {[%clk 0:00:02.6]} 60. Kd6 {[%clk 0:00:03.1]}
60... Nf7+ {[%clk 0:00:02.3]} 61. Ke6 {[%clk 0:00:03]} 61... Ne5 {[%clk
0:00:03.2]} 62. Kxf6 {[%clk 0:00:02.7]} 62... Nc4 {[%clk 0:00:03.8]} 63. Kg5
{[%clk 0:00:02.4]} 63... Ne3 {[%clk 0:00:04.2]} 64. Be4 {[%clk 0:00:01.6]} 64...
g3 {[%clk 0:00:04.1]} 65. Kf4 {[%clk 0:00:02.1]} 65... g2 {[%clk 0:00:04.2]} 66.
Bxg2 {[%clk 0:00:02.6]} 66... Nxg2+ {[%clk 0:00:05.1]} 67. Kg3 {[%clk
0:00:03.1]} 67... Ne3 {[%clk 0:00:05.4]} 68. Kf3 {[%clk 0:00:03.7]} 68... Nd5
{[%clk 0:00:05.8]} 69. Ke4 {[%clk 0:00:04.4]} 69... Nb6 {[%clk 0:00:06.1]} 70.
Ke5 {[%clk 0:00:04.6]} 70... Kc7 {[%clk 0:00:07]} 71. Ke6 {[%clk 0:00:04.8]}
71... Kxc6 {[%clk 0:00:06.8]} 1/2-1/2

[Event "Early-Titled-Tuesday-Blitz-February-27-2024"]
[Site "Chess.com"]
[Date "2024.02.27"]
[Round "5"]
[White "kleinebeer98"]
[Black "GHANDEEVAM2003"]
[Result "0-1"]
[WhiteElo "2886"]
[BlackElo "3030"]
[TimeControl "180+1"]
[EndTime "8:55:36 PST"]
[Termination "GHANDEEVAM2003 won on time"]

1. e4 {[%clk 0:03:00.9]} 1... e6 {[%clk 0:01:55.4]} 2. d4 {[%clk 0:02:52.8]}
2... b6 {[%clk 0:01:53.9]} 3. Nc3 {[%clk 0:02:52]} 3... Bb7 {[%clk 0:01:50.7]}
4. Nf3 {[%clk 0:02:51]} 4... Bb4 {[%clk 0:01:47.8]} 5. Bd3 {[%clk 0:02:49.7]}
5... Nf6 {[%clk 0:01:47.4]} 6. Qe2 {[%clk 0:02:49.3]} 6... d5 {[%clk 0:01:46.5]}
7. exd5 {[%clk 0:02:49]} 7... Qxd5 {[%clk 0:01:45.4]} 8. Bf4 {[%clk 0:02:42.6]}
8... Nc6 {[%clk 0:01:42.7]} 9. a3 {[%clk 0:02:18.2]} 9... Nxd4 {[%clk
0:01:27.5]} 10. Nxd4 {[%clk 0:01:33.3]} 10... Qxd4 {[%clk 0:01:28.4]} 11. Be5
{[%clk 0:01:26.8]} 11... Bxc3+ {[%clk 0:01:28]} 12. bxc3 {[%clk 0:01:27.7]}
12... Qc5 {[%clk 0:01:25.9]} 13. O-O {[%clk 0:01:14.8]} 13... O-O-O {[%clk
0:01:25]} 14. a4 {[%clk 0:01:13.9]} 14... a5 {[%clk 0:01:21.1]} 15. Rab1 {[%clk
0:01:11.6]} 15... Qc6 {[%clk 0:01:20.3]} 16. f3 {[%clk 0:01:10.9]} 16... Nd5
{[%clk 0:01:16.2]} 17. c4 {[%clk 0:01:04.1]} 17... Nb4 {[%clk 0:01:14.6]} 18.
Kh1 {[%clk 0:01:01.5]} 18... f6 {[%clk 0:01:08.5]} 19. Bg3 {[%clk 0:00:56.5]}
19... Nxd3 {[%clk 0:01:02.7]} 20. cxd3 {[%clk 0:00:57.4]} 20... e5 {[%clk
0:01:03.6]} 21. Rfc1 {[%clk 0:00:58.2]} 21... Qxa4 {[%clk 0:00:56.6]} 22. c5
{[%clk 0:00:57.5]} 22... b5 {[%clk 0:00:57]} 23. c6 {[%clk 0:00:57.6]} 23... Ba6
{[%clk 0:00:56.2]} 24. Ra1 {[%clk 0:00:52.9]} 24... Qb4 {[%clk 0:00:54.6]} 25.
Be1 {[%clk 0:00:47.1]} 25... Qf4 {[%clk 0:00:54.1]} 26. Bxa5 {[%clk 0:00:43.4]}
26... b4 {[%clk 0:00:49]} 27. Bxb4 {[%clk 0:00:33.8]} 27... Rxd3 {[%clk
0:00:48.9]} 28. Bd2 {[%clk 0:00:24.5]} 28... Qxd2 {[%clk 0:00:30.5]} 29. Qxd2
{[%clk 0:00:20.9]} 29... Rxd2 {[%clk 0:00:31.4]} 30. Rxa6 {[%clk 0:00:21.4]}
30... Rb2 {[%clk 0:00:32.1]} 31. Rd1 {[%clk 0:00:17.7]} 31... Rb8 {[%clk
0:00:30.5]} 32. h4 {[%clk 0:00:12]} 32... Rd8 {[%clk 0:00:30.4]} 33. Rda1 {[%clk
0:00:10.9]} 33... Rd6 {[%clk 0:00:29]} 34. Kh2 {[%clk 0:00:10.4]} 34... Kd8
{[%clk 0:00:26.5]} 35. Re1 {[%clk 0:00:07.2]} 35... h5 {[%clk 0:00:25.1]} 36. f4
{[%clk 0:00:06.3]} 36... exf4 {[%clk 0:00:23.7]} 37. Ra5 {[%clk 0:00:07.1]}
37... Rxc6 {[%clk 0:00:22.3]} 38. Rxh5 {[%clk 0:00:07.5]} 38... Kd7 {[%clk
0:00:22.7]} 39. Rh7 {[%clk 0:00:04.9]} 39... Rg8 {[%clk 0:00:23]} 40. h5 {[%clk
0:00:05.3]} 40... Re6 {[%clk 0:00:20.4]} 41. Rd1+ {[%clk 0:00:03.9]} 41... Rd6
{[%clk 0:00:21]} 42. h6 {[%clk 0:00:04.7]} 42... Ke6 {[%clk 0:00:13.9]} 43. Rxg7
{[%clk 0:00:03.2]} 43... Rxg7 {[%clk 0:00:12.5]} 44. hxg7 {[%clk 0:00:04.1]}
44... Kf7 {[%clk 0:00:13.2]} 45. Rc1 {[%clk 0:00:04.7]} 45... c6 {[%clk
0:00:11.3]} 46. Rc4 {[%clk 0:00:05.2]} 46... Kxg7 {[%clk 0:00:11.6]} 47. Rxf4
{[%clk 0:00:05.9]} 47... c5 {[%clk 0:00:12.2]} 48. Kg3 {[%clk 0:00:03.5]} 48...
Kf7 {[%clk 0:00:09.7]} 49. Rc4 {[%clk 0:00:02.1]} 49... Rc6 {[%clk 0:00:07.6]}
50. Kf4 {[%clk 0:00:01]} 50... Ke6 {[%clk 0:00:08.3]} 51. Ke4 {[%clk 0:00:01.8]}
51... f5+ {[%clk 0:00:08.4]} 52. Kf4 {[%clk 0:00:02.4]} 52... Kd5 {[%clk
0:00:09]} 53. Rc1 {[%clk 0:00:02.9]} 53... Rg6 {[%clk 0:00:07.9]} 54. Rc2 {[%clk
0:00:02.2]} 54... Rf6 {[%clk 0:00:08.6]} 55. Kg5 {[%clk 0:00:02.7]} 55... Rf8
{[%clk 0:00:08.6]} 56. Kg6 {[%clk 0:00:03.1]} 56... c4 {[%clk 0:00:08.5]} 57.
Kg7 {[%clk 0:00:03.8]} 57... Ra8 {[%clk 0:00:07.9]} 58. Kf6 {[%clk 0:00:04.7]}
58... f4 {[%clk 0:00:08.3]} 59. Kf5 {[%clk 0:00:05]} 59... Rf8+ {[%clk
0:00:08.8]} 60. Kg4 {[%clk 0:00:05.5]} 60... Kd4 {[%clk 0:00:09.3]} 61. Rd2+
{[%clk 0:00:04.5]} 61... Ke3 {[%clk 0:00:09]} 62. Rd7 {[%clk 0:00:04.4]} 62...
Rg8+ {[%clk 0:00:08.6]} 63. Kh3 {[%clk 0:00:05]} 63... c3 {[%clk 0:00:08.3]} 64.
Rd6 {[%clk 0:00:02.9]} 64... Rg3+ {[%clk 0:00:08.4]} 65. Kh2 {[%clk 0:00:03]}
65... c2 {[%clk 0:00:08.9]} 66. Rc6 {[%clk 0:00:02.7]} 66... Kd2 {[%clk
0:00:09.6]} 67. Rc4 {[%clk 0:00:03.1]} 67... c1=Q {[%clk 0:00:09.9]} 68. Rxc1
{[%clk 0:00:02.5]} 68... Kxc1 {[%clk 0:00:10.8]} 0-1

[Event "Early-Titled-Tuesday-Blitz-February-27-2024"]
[Site "Chess.com"]
[Date "2024.02.27"]
[Round "5"]
[White "Zkid"]
[Black "MyDream003"]
[Result "0-1"]
[WhiteElo "2913"]
[BlackElo "2720"]
[TimeControl "180+1"]
[EndTime "8:55:38 PST"]
[Termination "MyDream003 won by resignation"]

1. e4 {[%clk 0:03:00.9]} 1... e5 {[%clk 0:02:59.3]} 2. Nf3 {[%clk 0:03:01]} 2...
Nc6 {[%clk 0:02:59.7]} 3. Bb5 {[%clk 0:03:01.3]} 3... Nf6 {[%clk 0:02:59]} 4. d3
{[%clk 0:03:00.7]} 4... Bc5 {[%clk 0:02:58.8]} 5. Bxc6 {[%clk 0:03:00.6]} 5...
dxc6 {[%clk 0:02:59.1]} 6. O-O {[%clk 0:03:01.3]} 6... Qe7 {[%clk 0:02:57.5]} 7.
Bg5 {[%clk 0:02:59.2]} 7... h6 {[%clk 0:02:55.7]} 8. Bh4 {[%clk 0:02:59.2]} 8...
Bg4 {[%clk 0:02:48.1]} 9. h3 {[%clk 0:02:57.7]} 9... Bh5 {[%clk 0:02:48.6]} 10.
Nbd2 {[%clk 0:02:55.4]} 10... g5 {[%clk 0:02:42.1]} 11. Bg3 {[%clk 0:02:55.3]}
11... Bd6 {[%clk 0:02:10.5]} 12. d4 {[%clk 0:02:37.4]} 12... Nd7 {[%clk
0:02:07.4]} 13. Nc4 {[%clk 0:02:34.6]} 13... f6 {[%clk 0:02:05.9]} 14. Ne3
{[%clk 0:02:05.7]} 14... O-O-O {[%clk 0:02:01.3]} 15. Nf5 {[%clk 0:02:02.9]}
15... Qf8 {[%clk 0:01:56]} 16. Qd3 {[%clk 0:01:59.2]} 16... g4 {[%clk
0:01:42.3]} 17. hxg4 {[%clk 0:01:52.6]} 17... Bxg4 {[%clk 0:01:43.2]} 18. N3h4
{[%clk 0:01:49.7]} 18... Rg8 {[%clk 0:01:38.6]} 19. Qe3 {[%clk 0:01:37.7]} 19...
Bxf5 {[%clk 0:01:32]} 20. Nxf5 {[%clk 0:01:37]} 20... h5 {[%clk 0:01:32.5]} 21.
dxe5 {[%clk 0:01:32.2]} 21... Bc5 {[%clk 0:01:21.7]} 22. Qc3 {[%clk 0:01:21.5]}
22... fxe5 {[%clk 0:01:04.8]} 23. Rad1 {[%clk 0:01:16.2]} 23... Bb6 {[%clk
0:00:58.6]} 24. Bh4 {[%clk 0:00:56.9]} 24... Re8 {[%clk 0:00:58.9]} 25. Qh3
{[%clk 0:00:56.4]} 25... Rg4 {[%clk 0:00:55]} 26. Kh2 {[%clk 0:00:55.5]} 26...
Nf6 {[%clk 0:00:37.2]} 27. Bxf6 {[%clk 0:00:35.7]} 27... Qxf6 {[%clk 0:00:37]}
28. f3 {[%clk 0:00:36.1]} 28... Rgg8 {[%clk 0:00:11.2]} 29. Nd6+ {[%clk
0:00:17.3]} 29... Kb8 {[%clk 0:00:11.2]} 30. Nxe8 {[%clk 0:00:17.6]} 30... Rxe8
{[%clk 0:00:12.1]} 31. Rd7 {[%clk 0:00:17.4]} 31... a6 {[%clk 0:00:11.9]} 32.
Rfd1 {[%clk 0:00:15.4]} 32... Ka7 {[%clk 0:00:12.2]} 33. Rh7 {[%clk 0:00:14.4]}
33... Rg8 {[%clk 0:00:11.1]} 34. Rxh5 {[%clk 0:00:13.9]} 34... Qf4+ {[%clk
0:00:11.5]} 35. Kh1 {[%clk 0:00:14.4]} 35... a5 {[%clk 0:00:06.1]} 36. Rf5
{[%clk 0:00:12.7]} 36... Qe3 {[%clk 0:00:06.4]} 37. Rxe5 {[%clk 0:00:12.1]}
37... Qe2 {[%clk 0:00:06]} 38. Rc1 {[%clk 0:00:12.1]} 38... Qd2 {[%clk
0:00:06.6]} 39. Rf1 {[%clk 0:00:12.2]} 39... Qxc2 {[%clk 0:00:05.7]} 40. Qh5
{[%clk 0:00:09.5]} 40... Qxb2 {[%clk 0:00:05.8]} 41. g4 {[%clk 0:00:03.8]} 41...
Qc3 {[%clk 0:00:03.4]} 42. Rf5 {[%clk 0:00:03.2]} 42... Rh8 {[%clk 0:00:03.5]}
43. Kg2 {[%clk 0:00:01.8]} 43... Rxh5 {[%clk 0:00:03.7]} 44. gxh5 {[%clk
0:00:02.7]} 44... Qb2+ {[%clk 0:00:04.3]} 45. Kg3 {[%clk 0:00:03.2]} 45... Qg7+
{[%clk 0:00:04]} 46. Kh4 {[%clk 0:00:02]} 46... Qe7+ {[%clk 0:00:04.3]} 47. Kh3
{[%clk 0:00:02.1]} 47... Qg7 {[%clk 0:00:04.3]} 48. f4 {[%clk 0:00:02.1]} 48...
Qc3+ {[%clk 0:00:03.9]} 49. Kg4 {[%clk 0:00:02.2]} 49... Qd3 {[%clk 0:00:04.4]}
50. Rf3 {[%clk 0:00:02.3]} 50... Qxe4 {[%clk 0:00:04.7]} 51. h6 {[%clk
0:00:02.8]} 51... Qe6 {[%clk 0:00:05.1]} 52. Rh3 {[%clk 0:00:02.8]} 52... Qg6+
{[%clk 0:00:05.1]} 53. Rg5 {[%clk 0:00:03.4]} 53... Qe6+ {[%clk 0:00:05.7]} 54.
f5 {[%clk 0:00:03.3]} 54... Qe4+ {[%clk 0:00:06.2]} 55. Kh5 {[%clk 0:00:03.9]}
55... Bd4 {[%clk 0:00:05.9]} 56. h7 {[%clk 0:00:03.4]} 56... Qe8+ {[%clk
0:00:06]} 57. Rg6 {[%clk 0:00:03.8]} 57... Qf7 {[%clk 0:00:06.2]} 58. Kg5 {[%clk
0:00:03.4]} 58... Qe7+ {[%clk 0:00:06.8]} 59. Kh5 {[%clk 0:00:02.8]} 59... Qf7
{[%clk 0:00:07.1]} 60. Kg5 {[%clk 0:00:03.2]} 60... Bh8 {[%clk 0:00:07.8]} 61.
Re3 {[%clk 0:00:02.6]} 61... Qxh7 {[%clk 0:00:07.5]} 62. Rh6 {[%clk 0:00:01.4]}
62... Qg7+ {[%clk 0:00:07.7]} 63. Kh5 {[%clk 0:00:02]} 63... Qf7+ {[%clk
0:00:08.2]} 64. Kg4 {[%clk 0:00:02]} 64... Bg7 {[%clk 0:00:08.6]} 65. Rg6 {[%clk
0:00:02.2]} 65... Qf8 {[%clk 0:00:09.2]} 66. Ree6 {[%clk 0:00:02.3]} 66... Bb2
{[%clk 0:00:08.8]} 67. f6 {[%clk 0:00:02.7]} 67... Qb4+ {[%clk 0:00:08.7]} 68.
Kf5 {[%clk 0:00:02.9]} 68... Qc5+ {[%clk 0:00:09.3]} 69. Kg4 {[%clk 0:00:03.3]}
69... Qc4+ {[%clk 0:00:09.7]} 70. Kh5 {[%clk 0:00:03.5]} 70... Qxe6 {[%clk
0:00:09.7]} 71. Kh6 {[%clk 0:00:03.9]} 71... Qxf6 {[%clk 0:00:09.5]} 0-1

[Event "Early-Titled-Tuesday-Blitz-February-27-2024"]
[Site "Chess.com"]
[Date "2024.02.27"]
[Round "5"]
[White "Barbix1"]
[Black "NastyaHn"]
[Result "0-1"]
[WhiteElo "2270"]
[BlackElo "2457"]
[TimeControl "180+1"]
[EndTime "8:55:42 PST"]
[Termination "NastyaHn won on time"]

1. e4 {[%clk 0:03:00.9]} 1... e6 {[%clk 0:02:58.9]} 2. d4 {[%clk 0:02:57.9]}
2... d5 {[%clk 0:02:58.8]} 3. Nc3 {[%clk 0:02:57.2]} 3... Bb4 {[%clk 0:02:57.9]}
4. e5 {[%clk 0:02:50.8]} 4... c5 {[%clk 0:02:57.9]} 5. a3 {[%clk 0:02:48.6]}
5... Bxc3+ {[%clk 0:02:56.5]} 6. bxc3 {[%clk 0:02:49.5]} 6... Ne7 {[%clk
0:02:55.8]} 7. Qg4 {[%clk 0:02:43.1]} 7... Qc7 {[%clk 0:02:54.3]} 8. Qxg7 {[%clk
0:02:15.3]} 8... Rg8 {[%clk 0:02:52.4]} 9. Qxh7 {[%clk 0:02:15.8]} 9... cxd4
{[%clk 0:02:52.5]} 10. Qd3 {[%clk 0:02:05.1]} 10... Qxe5+ {[%clk 0:02:51.2]} 11.
Ne2 {[%clk 0:01:57.9]} 11... dxc3 {[%clk 0:02:44.8]} 12. Qxc3 {[%clk 0:01:54.3]}
12... Qxc3+ {[%clk 0:02:40.8]} 13. Nxc3 {[%clk 0:01:55.2]} 13... a6 {[%clk
0:02:40.3]} 14. g3 {[%clk 0:01:43.9]} 14... Nbc6 {[%clk 0:02:39.6]} 15. h4
{[%clk 0:01:36]} 15... e5 {[%clk 0:02:33.6]} 16. h5 {[%clk 0:01:28.6]} 16... Be6
{[%clk 0:02:31.3]} 17. h6 {[%clk 0:01:19.5]} 17... f6 {[%clk 0:02:25.7]} 18. Bd3
{[%clk 0:00:56.7]} 18... Kf7 {[%clk 0:02:22.6]} 19. Bb2 {[%clk 0:00:35]} 19...
Rac8 {[%clk 0:02:14.4]} 20. O-O-O {[%clk 0:00:28.3]} 20... b5 {[%clk 0:02:09.1]}
21. Rh4 {[%clk 0:00:13.4]} 21... Rb8 {[%clk 0:01:58.2]} 22. Rdh1 {[%clk
0:00:11.8]} 22... b4 {[%clk 0:01:51.6]} 23. axb4 {[%clk 0:00:12.7]} 23... Nxb4
{[%clk 0:01:51.7]} 24. Ba3 {[%clk 0:00:09.5]} 24... Nxd3+ {[%clk 0:01:49.1]} 25.
cxd3 {[%clk 0:00:10.4]} 25... Rb3 {[%clk 0:01:40.5]} 26. Bxe7 {[%clk 0:00:07.8]}
26... Kxe7 {[%clk 0:01:33.5]} 27. Kc2 {[%clk 0:00:05.9]} 27... Rb7 {[%clk
0:01:29.4]} 28. h7 {[%clk 0:00:05.6]} 28... Rh8 {[%clk 0:01:29.6]} 29. g4 {[%clk
0:00:04.6]} 29... Rc7 {[%clk 0:01:18.7]} 30. Kd2 {[%clk 0:00:04.2]} 30... Kf7
{[%clk 0:01:12.5]} 31. Ne2 {[%clk 0:00:04.3]} 31... Rb7 {[%clk 0:01:08.8]} 32.
Ng3 {[%clk 0:00:04.4]} 32... Rb2+ {[%clk 0:01:03.3]} 33. Kc1 {[%clk 0:00:04.6]}
33... Rxf2 {[%clk 0:01:01.6]} 34. R1h3 {[%clk 0:00:02.7]} 34... a5 {[%clk
0:00:58.4]} 35. Rh6 {[%clk 0:00:02.6]} 35... Bxg4 {[%clk 0:00:53.4]} 36. R3h4
{[%clk 0:00:02.1]} 36... Be6 {[%clk 0:00:51.5]} 37. Nh5 {[%clk 0:00:02.2]} 37...
d4 {[%clk 0:00:44.1]} 38. Rh1 {[%clk 0:00:02.3]} 38... Bg4 {[%clk 0:00:28.3]}
39. Rg1 {[%clk 0:00:02.1]} 39... Bxh5 {[%clk 0:00:28.3]} 40. Rxh5 {[%clk
0:00:03]} 40... a4 {[%clk 0:00:26.7]} 41. Kb1 {[%clk 0:00:03.4]} 41... a3 {[%clk
0:00:26.8]} 42. Ka1 {[%clk 0:00:03.8]} 42... Rf3 {[%clk 0:00:21.7]} 43. Rh6
{[%clk 0:00:03.6]} 43... Rf2 {[%clk 0:00:13.8]} 44. Rgg6 {[%clk 0:00:03.9]}
44... a2 {[%clk 0:00:11]} 45. Rg1 {[%clk 0:00:02.9]} 45... e4 {[%clk 0:00:10.5]}
46. dxe4 {[%clk 0:00:02]} 46... d3 {[%clk 0:00:11]} 47. e5 {[%clk 0:00:02.3]}
47... fxe5 {[%clk 0:00:10.7]} 48. Rc1 {[%clk 0:00:02.3]} 48... Kg7 {[%clk
0:00:08]} 49. Rh3 {[%clk 0:00:02.4]} 49... e4 {[%clk 0:00:07.9]} 50. Rc7+ {[%clk
0:00:02.5]} 50... Kf6 {[%clk 0:00:07.8]} 51. Rc6+ {[%clk 0:00:02.6]} 51... Ke5
{[%clk 0:00:07.9]} 52. Rh5+ {[%clk 0:00:02.4]} 52... Kd4 {[%clk 0:00:07.4]} 53.
Rd6+ {[%clk 0:00:02.9]} 53... Ke3 {[%clk 0:00:07.8]} 54. Rh3+ {[%clk 0:00:03]}
54... Rf3 {[%clk 0:00:07.9]} 55. Rh1 {[%clk 0:00:02.6]} 55... Ke2 {[%clk
0:00:07.3]} 56. Re6 {[%clk 0:00:02.5]} 56... e3 {[%clk 0:00:07.6]} 57. Reh6
{[%clk 0:00:02.5]} 57... d2 {[%clk 0:00:07.8]} 58. R6h2+ {[%clk 0:00:02.3]}
58... Rf2 {[%clk 0:00:08]} 59. Rh6 {[%clk 0:00:02.2]} 59... d1=Q+ {[%clk
0:00:07.5]} 60. Rxd1 {[%clk 0:00:02.9]} 60... Kxd1 {[%clk 0:00:07.8]} 61. Rd6+
{[%clk 0:00:02.8]} 61... Ke2 {[%clk 0:00:05.8]} 62. Re6 {[%clk 0:00:02]} 62...
Rf1+ {[%clk 0:00:04.3]} 63. Kxa2 {[%clk 0:00:01.5]} 63... Rxh7 {[%clk
0:00:04.9]} 0-1